Workbook

Sheet Part_materia_prima (hidden)
A1: TABLA VIGENTE PARA 2018 Y 2019
A2: Participación | C2: Rebaja en tarifa ICE específico
A3: DESDE | B3: HASTA | C3: %
A4: 0.05 | B4: 0.1 | C4: 0.05
A5: 0.1001 | B5: 0.2 | C5: 0.1
A6: 0.2001 | B6: 0.3 | C6: 0.2
A7: 0.3 | B7: 0.4 | C7: 0.3
A8: 0.4001 | B8: 0.5 | C8: 0.4
A9: 0.5001 | B9: 1 | C9: 0.5
A10: CALCULO DE LA PARTICIPACIÓN Y REBAJA EN LA TARIFA ESPECÍFICA A PARTIR DE ENERO 2019
D12: JUSTIFICADO CON COMPROBANTES DE VENTA VÁLIDOS
A13: # | B13: AÑO | C13: MES | D13: AGUARDIENTE Y ALCOHOL SIN BENEFICIO | E13: ALCOHOL ARTESANAL/EPS | F13: AGUARDIENTE ARTESANAL/EPS | G13: TOTAL COMPRAS | H13: TOTAL COMPRAS ÚLTIMOS 6 MESES | I13: AGUARDIENTE Y ALCOHOL PRIMA PARA BENEFICIO | J13: TOTAL COMPRAS CON BENEFICIO | K13: PARTICIPACIÓN | L13: % REDUCCCIÓN EN TARIFA ESPECÍFICA
A14: 1 | B14: 2018 | C14: JULIO | G14: =SUM(D14:F14) -> 0 | I14: =SUM(E14:F14) -> 0
A15: 2 | B15: 2018 | C15: AGOSTO | G15: =SUM(D15:F15) -> 0 | I15: =SUM(E15:F15) -> 0
A16: 3 | B16: 2018 | C16: SEPTIEMBRE | G16: 0 | H16: =SUM(G14:G15) -> 0 | I16: 0 | J16: =SUM(I14:I15) -> 0 | K16: =+J16/H16 ->  | L16: =+IF(K16<5%,0%,IF(K16<=$B$4,5%,IF(K16<=$B$5,10%,IF(K16<=$B$6,20%,IF(K16<=$B$7,30%,IF(K16<=$B$8,40%,IF(K16<=$B$9,50%,"REVISAR"))))))) -> 
A17: 4 | B17: 2018 | C17: OCTUBRE | G17: 0 | H17: =SUM(G14:G16) -> 0 | I17: 0 | J17: =SUM(I14:I16) -> 0 | K17: =+J17/H17 ->  | L17: =+IF(K17<5%,0%,IF(K17<=$B$4,5%,IF(K17<=$B$5,10%,IF(K17<=$B$6,20%,IF(K17<=$B$7,30%,IF(K17<=$B$8,40%,IF(K17<=$B$9,50%,"REVISAR"))))))) -> 
A18: 5 | B18: 2018 | C18: NOVIEMBRE | G18: 0 | H18: =SUM(G14:G17) -> 0 | I18: 0 | J18: =SUM(I14:I17) -> 0 | K18: =+J18/H18 ->  | L18: =+IF(K18<5%,0%,IF(K18<=$B$4,5%,IF(K18<=$B$5,10%,IF(K18<=$B$6,20%,IF(K18<=$B$7,30%,IF(K18<=$B$8,40%,IF(K18<=$B$9,50%,"REVISAR"))))))) -> 
A19: 6 | B19: 2018 | C19: DICIEMBRE | G19: 0 | H19: =SUM(G14:G18) -> 0 | I19: 0 | J19: =SUM(I14:I18) -> 0 | K19: =+J19/H19 ->  | L19: =+IF(K19<5%,0%,IF(K19<=$B$4,5%,IF(K19<=$B$5,10%,IF(K19<=$B$6,20%,IF(K19<=$B$7,30%,IF(K19<=$B$8,40%,IF(K19<=$B$9,50%,"REVISAR"))))))) -> 
A20: 7 | B20: 2019 | C20: ENERO | G20: =SUM(D20:F20) -> 0 | H20: =SUM(G14:G19) -> 0 | I20: =SUM(E20:F20) -> 0 | J20: =SUM(I14:I19) -> 0 | K20: =+J20/H20 ->  | L20: =+IF(K20<5%,0%,IF(K20<=$B$4,5%,IF(K20<=$B$5,10%,IF(K20<=$B$6,20%,IF(K20<=$B$7,30%,IF(K20<=$B$8,40%,IF(K20<=$B$9,50%,"REVISAR"))))))) -> 
A21: 8 | B21: 2019 | C21: FEBRERO | G21: 0 | H21: =SUM(G15:G20) -> 0 | I21: 0 | J21: =SUM(I15:I20) -> 0 | K21: =+J21/H21 ->  | L21: =+IF(K21<5%,0%,IF(K21<=$B$4,5%,IF(K21<=$B$5,10%,IF(K21<=$B$6,20%,IF(K21<=$B$7,30%,IF(K21<=$B$8,40%,IF(K21<=$B$9,50%,"REVISAR"))))))) -> 
A22: 9 | B22: 2019 | C22: MARZO | G22: 0 | H22: =SUM(G16:G21) -> 0 | I22: 0 | J22: =SUM(I16:I21) -> 0
A23: 10 | B23: 2019 | C23: ABRIL | G23: 0 | H23: =SUM(G17:G22) -> 0 | I23: 0 | J23: =SUM(I17:I22) -> 0
A24: 11 | B24: 2019 | C24: MAYO | G24: 0 | H24: =SUM(G18:G23) -> 0 | I24: 0 | J24: 0
A25: 12 | B25: 2019 | C25: JUNIO | G25: 0 | H25: =SUM(G19:G24) -> 0 | I25: 0 | J25: 0
A26: 13 | B26: 2019 | C26: JULIO | G26: 0 | H26: 0 | I26: 0 | J26: 0
A27: 14 | B27: 2019 | C27: AGOSTO | G27: 0 | H27: 0 | I27: 0 | J27: 0
A28: 15 | B28: 2019 | C28: SEPTIEMBRE | G28: 0 | H28: 0 | I28: 0 | J28: 0
A29: 16 | B29: 2019 | C29: OCTUBRE | G29: 0 | H29: 0 | I29: 0 | J29: 0
A30: 17 | B30: 2019 | C30: NOVIEMBRE | G30: 0 | H30: 0 | I30: 0 | J30: 0
A31: 18 | B31: 2019 | C31: DICIEMBRE | G31: 0 | H31: 0 | I31: 0 | J31: 0
A34: ESCOJA MES: | C34: FEBRERO | F34: =+IF(L13=0%,"NO TIENE REBAJA EN ICE ESPECÍFICO","LA REDUCCIÓN EN LA TARIFA ESPECÍFICA ES DE:") -> LA REDUCCIÓN EN LA TARIFA ESPECÍFICA ES DE: | K34: =+IF(C34="ENERO",L20,IF(C34="FEBRERO",L21,IF(C34="MARZO",L22,IF(C34="ABRIL",L23,IF(C34="MAYO",L24,IF(C34="JUNIO",L25,IF(C34="JULIO",L26,IF(C34="AGOSTO",L27,IF(C34="SEPTIEMBRE",L28,IF(C34="OCTUBRE",L29,IF(C34="NOVIEMBRE",L30,IF(C34="DICIEMBRE",L31,"REVISAR")))))))))))) -> 
A37: Nota: El contribuyente deberá ingresar los datos en los campos resaltados en amarillo de acuerdo a su propia información.

Sheet Ejemplo ICE 2021
B1: DATOS DE LAS BEBIDAS ALCOHÓLICAS:
B3: TIPO DE BEBIDA | C3: PRECIO DE VENTA DEL FABRICANTE/PRECIO EXADUANA | D3: UNIDADES A VENDER/IMPORTAR | E3: GRADO ALCOHÓLICO | F3: CAPACIDAD (ml/cc)
B4: AGUARDIENTE | C4: 2.78 | D4: 1 | E4: 0.47 | F4: 750
B5: LICOR SECO | C5: 3 | D5: 1 | E5: 0.3 | F5: 500
B6: COCTEL | C6: 5.25 | D6: 1 | E6: 0.2 | F6: 375
C8: ICE AD VALOREM:
B9: TIPO DE BEBIDA | C9: BASE BRUTA (Casillero 303) | D9: BASE NETA (Casillero 303) | E9: % Tarifa ad valorem (Casillero 305) | F9: ICE CAUSADO ADVALOREM (Casillero 309)
B10: =+B33 -> AGUARDIENTE | C10: =+IF(C4*1000/F4>4.29,(C4-(4.29*F4/1000))*D4,0) -> 0 | D10: =+C10 -> 0 | E10: 0.75 | F10: =+D10*E10 -> 0
B11: =+B34 -> LICOR SECO | C11: =+IF(C5*1000/F5>4.29,(C5-(4.29*F5/1000))*D5,0) -> 0.855 | D11: =+C11 -> 0.855 | E11: 0.75 | F11: =+D11*E11 -> 0.64125
B12: =+B35 -> COCTEL | C12: =+IF(C6*1000/F6>4.29,(C6-(4.29*F6/1000))*D6,0) -> 3.64125 | D12: =+C12 -> 3.64125 | E12: 0.75 | F12: =+D12*E12 -> 2.7309375
C13: =SUM(C10:C12) -> 4.49625 | D13: =+C13 -> 4.49625 | F13: =SUM(F10:F12) -> 3.3721875
C15: ICE ESPECÍFICO:
B16: TIPO DE BEBIDA | C16: VOLUMEN BRUTO | D16: VOLUMEN NETO | E16: TARIFA ESPECÍFICA | F16: ICE ESPECÍFICO
B17: =+B10 -> AGUARDIENTE | C17: =+F4*E4*D4/1000 -> 0.3525 | D17: =+C17 -> 0.3525 | E17: 10 | F17: =+C17*E17 -> 3.525
B18: =+B11 -> LICOR SECO | C18: =+F5*E5*D5/1000 -> 0.15 | D18: =+C18 -> 0.15 | E18: 10 | F18: =+C18*E18 -> 1.5
B19: =+B12 -> COCTEL | C19: =+F6*E6*D6/1000 -> 0.075 | D19: =+C19 -> 0.075 | E19: 10 | F19: =+C19*E19 -> 0.75
C20: =SUM(C17:C19) -> 0.5775 | D20: =SUM(D17:D19) -> 0.5775 | F20: =SUM(F17:F19) -> 5.775
C22: ICE TOTAL CAUSADO SIN BENEFICIOS | F22: =+F13+F20 -> 9.1471875
B24: ANÁLISIS DE EXONERACIÓN Y REBAJA
B26: ANÁLISIS DE INGREDIENTES NACIONALES: Se realiza por cada bebida alcohólica, con su respectiva Notificación Sanitaria y excluyendo el agua. Los productores de ingredientes nacionales deben ser artesanos, micros o de la EPS; y adicionalmente deben constar en el listado de MAG o MPCEIP.
B28: El sujeto pasivo debe cumplir con todos y cada uno de los requisitos y condiciones establecidos en la normativa tributaria vigente. El incumplmiento de un requisto o condición, no le permite acceder a los beneficios, debiendo calcular el ICE sin ningún tipo de exoneración y/o rebaja.
B30: EXONERACIÓN
B32: TIPO DE BEBIDA | C32: % INGREDIENTES NACIONALES | D32: OBSERVACIÓN | E32: % EXENCIÓN (ver tabla en resolución) | F32: ICE AD VALOREM | G32: ICE ESPECÍFICO | H32: TOTAL ICE | I32: VALOR EXENCIÓN (Casillero 326)
B33: =+B4 -> AGUARDIENTE | C33: 1 | D33: =+IF(C33<=70%,"No aplica beneficios","Sí aplica beneficios") -> Sí aplica beneficios | E33: =+IF(C33<=69.99%,"0%",IF(C33<=75%,"0,5%",IF(C33<=80%,"1,0%",IF(C33<=85%,"1,5%",IF(C33<=90%,"2,0%",IF(C33<=95%,"3,0%",IF(C33<=99%,"4,0%",IF(C33<=100%,"5,0"%)))))))) -> 0.05 | F33: =+F10 -> 0 | G33: =+F17 -> 3.525 | H33: =+F33+G33 -> 3.525 | I33: =+E33*H33 -> 0.17625
B34: =+B5 -> LICOR SECO | C34: 1 | D34: =+IF(C34<=70%,"No aplica beneficios","Sí aplica beneficios") -> Sí aplica beneficios | E34: =+IF(C34<=69.99%,"0%",IF(C34<=75%,"0,5%",IF(C34<=80%,"1,0%",IF(C34<=85%,"1,5%",IF(C34<=90%,"2,0%",IF(C34<=95%,"3,0%",IF(C34<=99%,"4,0%",IF(C34<=100%,"5,0"%)))))))) -> 0.05 | F34: =+F11 -> 0.64125 | G34: =+F18 -> 1.5 | H34: =+F34+G34 -> 2.14125 | I34: =+E34*H34 -> 0.1070625
B35: =+B6 -> COCTEL | C35: 0.2 | D35: =+IF(C35<=70%,"No aplica beneficios","Sí aplica beneficios") -> No aplica beneficios | E35: =+IF(C35<=69.99%,"0%",IF(C35<=75%,"0,5%",IF(C35<=80%,"1,0%",IF(C35<=85%,"1,5%",IF(C35<=90%,"2,0%",IF(C35<=95%,"3,0%",IF(C35<=99%,"4,0%",IF(C35<=100%,"5,0"%)))))))) -> 0% | F35: =+F12 -> 2.7309375 | G35: =+F19 -> 0.75 | H35: =+F35+G35 -> 3.4809375 | I35: =+E35*H35 -> 0
H36: Total | I36: =SUM(I33:I35) -> 0.2833125
B38: REBAJA
B40: TIPO DE BEBIDA | C40: % INGREDIENTES NACIONALES | D40: OBSERVACIÓN | E40: VOLUMEN NETO Casillero: | F40: VOLUMEN BRUTO | G40: VOLUMEN NETO | H40: TARIFA ESPECÍFICA | I40: ICE ESPECÍFICO
B41: =+B33 -> AGUARDIENTE | C41: =+C33 -> 1 | D41: =+IF(C41<=70%,"No aplica beneficios","Sí aplica beneficios") -> Sí aplica beneficios | E41: =+IF(D41="No aplica beneficios","Casillero 314","Casillero 316") -> Casillero 316 | F41: =+IF(D41="No aplica beneficios", D4*F4*E4/1000,D4*E4*F4/1000) -> 0.3525 | G41: =+F41 -> 0.3525 | H41: =+IF(D41="No aplica beneficios",10, 10*50%) -> 5 | I41: =+G41*H41 -> 1.7625
B42: =+B34 -> LICOR SECO | C42: =+C34 -> 1 | D42: =+IF(C42<=70%,"No aplica beneficios","Sí aplica beneficios") -> Sí aplica beneficios | E42: =+IF(D42="No aplica beneficios","Casillero 314","Casillero 316") -> Casillero 316 | F42: =+IF(D42="No aplica beneficios", D5*F5*E5/1000,D5*E5*F5/1000) -> 0.15 | G42: =+F42 -> 0.15 | H42: =+IF(D42="No aplica beneficios",10, 10*50%) -> 5 | I42: =+G42*H42 -> 0.75
B43: =+B35 -> COCTEL | C43: =+C35 -> 0.2 | D43: =+IF(C43<=70%,"No aplica beneficios","Sí aplica beneficios") -> No aplica beneficios | E43: =+IF(D43="No aplica beneficios","Casillero 314","Casillero 316") -> Casillero 314 | F43: =+IF(D43="No aplica beneficios", D6*F6*E6/1000,D6*E6*F6/1000) -> 0.075 | G43: =+F43 -> 0.075 | H43: =+IF(D43="No aplica beneficios",10, 10*50%) -> 10 | I43: =+G43*H43 -> 0.75
F44: =SUM(F41:F43) -> 0.5775 | G44: =SUM(G41:G43) -> 0.5775 | H44: Total | I44: =SUM(I41:I43) -> 3.2625
C47: RESUMEN
C49: ICE AD VALOREM SIN EXONERACIÓN | D49: ICE ESPECÍFICO SIN BENEFICIOS | E49: EXONERACIÓN ICE | F49: REBAJA ICE | G49: VALOR A PAGAR | P49: =+H36-#REF!-F51 -> 
C50: =+F13 -> 3.3721875 | D50: =+F20 -> 5.775 | E50: =+I36 -> 0.2833125 | F50: =+Formulario_ICE!R9 -> 2.5125 | G50: =+C50+D50-E50-F50 -> 6.351375

Sheet Formulario_ICE
A1: IMPUESTO AD VALOREM | K1: IMPUESTO ESPECÍFICO
A2: Base imponible bruta | G2: 303 | H2: =+'Ejemplo ICE 2021'!C13 -> 4.49625 | K2: Volumen bruto | Q2: 313 | R2: =+'Ejemplo ICE 2021'!C19 -> 0.075
A3: Base imponible neta (base imponible bruta menos devoluciones) | G3: 304 | H3: =+'Ejemplo ICE 2021'!D13 -> 4.49625 | I3: . | K3: Volumen neto (volumen bruto menos devoluciones) | Q3: 314 | R3: =+'Ejemplo ICE 2021'!G43 -> 0.075
A4: Porcentaje tarifa ad valorem | G4: 305 | H4: 0.75 | I4: . | K4: Tarifa específica | Q4: 315 | R4: 10
A5: ICE causado ad valorem | G5: 309 | H5: =+H3*H4 -> 3.3721875 | I5: . | K5: ICE causado específico | Q5: 319 | R5: =+R3*R4 -> 0.75
A6: et
A7: Volumen neto de vehículos eléctricos | G7: 307 | H7: 0 | I7: . | K7: Volumen neto aplica tarifa reducida | Q7: 316 | R7: =+'Ejemplo ICE 2021'!G41+'Ejemplo ICE 2021'!G42 -> 0.5025
A8: Descuento ICE causado ad valorem | G8: 310 | H8: 0 | I8: . | K8: Tarifa específica reducida | Q8: 317 | R8: =+R4/2 -> 5
A9: Volumen neto de vehículos | G9: 311 | H9: 0 | I9: . | K9: Rebaja por tarifa reducida | Q9: 318 | R9: =+(R7*R4)-(R7*R8) -> 2.5125
A10: ICE causado ad valorem vehículos seguridad y emisiones | G10: 312 | H10: 0 | I10: . | K10: ICE causado específico con tarifa reducida | Q10: 320 | R10: =+R7*R8 -> 2.5125
A11: Volumen neto de vehículos motorizados con seguridad y emisiones superiores euro 3 | G11: 330 | H11: 0 | I11: . | K11: Exención ICE bebidas alcohólicas | Q11: 326 | R11: =+'Ejemplo ICE 2021'!I36 -> 0.2833125
A12: ICE causado ad valorem vehículos motorizados con seguridad y emisiones superiores euro 3 | G12: 331 | H12: 0 | I12: .
A13: Volumen neto de vehículos motorizados con exención | G13: 328 | H13: 0 | I13: .
A14: Exención ICE vehículos motorizados | G14: 329 | H14: 0 | I14: .
A15: 0
A16: ICE CAUSADO
A17: ICE pagado al momento de la desaduanización | M17: . | Q17: 321 | R17: 0
A18: TOTAL ICE CAUSADO | M18: 309 - 310 + 312 + 319 + 320+331 -326- 321 | Q18: 399 | R18: =+H5-H8+H10+R5+R10+H12-R11-R17 -> 6.351375
A20: LIQUIDACIÓN DEL ICE EN EL MES
A21: Impuesto a liquidar el próximo mes (por ventas a crédito del período) | M21: . | Q21: 402 | R21: 0
A22: Impuesto a liquidar del mes anterior | K22: (Trasládese el casillero 402 de la declaración del período anterior) | Q22: 403 | R22: 0
A23: Total impuesto a liquidar en este mes | M23: 399 - 402 + 403 | Q23: 404 | R23: =+R18-R21+R22 -> 6.351375
A25: (-) Saldo mes anterior por concepto de notas de crédito | K25: (Trasládese el casillero 498 de la declaración del período anterior) | Q25: 410 | R25: 0
A26: (-) Notas de crédito del periodo | M26: . | Q26: 411 | R26: 0
A27: Saldo para el próximo mes por concepto de notas de crédito | M27: . | Q27: 498 | R27: 0
A28: TOTAL ICE A PAGAR | M28: 404 - 410 - 411 | Q28: 499 | R28: =+R23-R25-R26 -> 6.351375
A30: TOTALES
A31: VALORES A PAGAR
A32: Pago previo | M32: . | Q32: 890 | R32: 0
A33: Detalle de imputación al pago
A34: . | C34: Interés | Q34: 897 | R34: 0
A35: . | C35: Impuesto | Q35: 898 | R35: 0
A36: . | C36: Multa | Q36: 899 | R36: 0
A38: VALORES A PAGAR (luego de imputación al pago)
A39: TOTAL IMPUESTO A PAGAR | M39: 499 - 898 | Q39: 902 | R39: =+R28-R35 -> 6.351375
A40: Interés por mora | M40: . | Q40: 903 | R40: 0
A41: Multa | M41: . | Q41: 904 | R41: 0
A42: TOTAL PAGADO | M42: . | Q42: 999 | R42: =+R39+R40+R41 -> 6.351375

Sheet Tabla_Exoneración
A2: Participación de compras de ingredientes nacionales respecto de las compras totales (inclusive importaciones) para la elaboración de bebidas alcohólicas | C2: Exención en ICE calculado sin beneficio alguno
A3: Desde | B3: Hasta | C3: %
A4: 0 | B4: 0.6999 | C4: 0
A5: 0.7 | B5: 0.75 | C5: 0.005
A6: 0.7501 | B6: 0.8 | C6: 0.01
A7: 0.8001 | B7: 0.85 | C7: 0.015
A8: 0.8501 | B8: 0.9 | C8: 0.02
A9: 0.9001 | B9: 0.95 | C9: 0.03
A10: 0.9501 | B10: 0.99 | C10: 0.04
A11: 0.9901 | B11: 1 | C11: 0.05

Sheet Formulario ICE (hidden)
A1: FORMULARIO IMPUESTO A LOS CONSUMOS ESPECIALES
A3: IMPUESTO AD VALOREM | I3: . | K3: IMPUESTO ESPECÍFICO
A4: Base imponible bruta | G4: 303 | H4: =+#REF! ->  | I4: . | K4: Volumen bruto | Q4: 313 | R4: =+#REF! -> 
A5: Base imponible neta (base imponible bruta menos devoluciones) | G5: 304 | H5: =+#REF! ->  | I5: . | K5: Volumen neto (volumen bruto menos devoluciones) | Q5: 314 | R5: =+#REF! -> 
A6: Porcentaje tarifa ad valorem | G6: 305 | H6: 0.75 | I6: . | K6: Tarifa específica | Q6: 315 | R6: 7.25
A7: ICE causado ad valorem | G7: 309 | H7: =+H6*H5 ->  | I7: . | K7: ICE causado específico | Q7: 319 | R7: =+ROUND((R5*R6),2) -> 
A9: Volumen neto de vehículos eléctricos | G9: 307 | H9: 0 | I9: . | K9: Volumen neto aplica tarifa reducida | Q9: 316 | R9: =+#REF! -> 
A10: Descuento ICE causado ad valorem | G10: 310 | H10: 0 | I10: . | K10: Tarifa específica reducida | Q10: 317 | R10: =+#REF! -> 
A11: . | I11: . | K11: Rebaja por tarifa reducida | Q11: 318 | R11: =R9*(R6*Part_materia_prima!K34) -> 
A12: . | I12: . | K12: ICE causado específico con tarifa reducida | Q12: 320 | R12: =+#REF! -> 
A14: ICE CAUSADO
A15: ICE pagado al momento de la desaduanización | M15: . | Q15: 321
A16: TOTAL ICE CAUSADO | M16: 309 - 310 + 319 + 320 - 321 | Q16: 399 | R16: =+ROUND((H7+H10+R7+R12),2) -> 
A18: LIQUIDACIÓN DEL ICE EN EL MES
A19: Impuesto a liquidar el próximo mes (por ventas a crédito del período) | M19: . | Q19: 402
A20: Impuesto a liquidar del mes anterior | K20: (Trasládese el casillero 402 de la declaración del período anterior) | Q20: 403
A21: Total impuesto a liquidar en este mes | M21: 399 - 402 + 403 | Q21: 404
A23: (-) Saldo mes anterior por concepto de notas de crédito | K23: (Trasládese el casillero 498 de la declaración del período anterior) | Q23: 410
A24: (-) Notas de crédito del periodo | M24: . | Q24: 411
A25: Saldo para el próximo mes por concepto de notas de crédito | M25: . | Q25: 498
A26: TOTAL ICE A PAGAR | M26: 404 - 410 - 411 | Q26: 499
